Cogmind - Beta 16 @@@ ROGUE MODE // 2025.12.27 @ 01:05:45 Player: jumpy Result: Destroyed by PH-5FQ2K2X2KK with Advanced KE Penetrator Performance ------------- Evolutions (8) 4000 Regions Visited (25) 5000 Robots Destroyed (101) 505 Value Destroyed (4739) 4739 Prototype IDs (45) 900 Alien Tech Used (2) 400 Bonus (6741) 6741 TOTAL SCORE: 22285 Bonus ------- High Alert Combat Kills 268 Follower Combat Kills 2303 Met Data Miner 300 Met Zhirov 300 Built Enhanced Grunts 300 A7 Reached Mainframe 300 Met R17 at Cetus 500 Met R17 at Research 2000 Scanned by Researcher 500 Friendly Fire -30 Cogmind --------- Core Integrity 0/1450 Matter 243/300 Energy 100/100 System Corruption 7% Temperature Cool (0) Movement Flying (39) Location -2/Testing Parts ------- > --- POWER (2) -------- (None) > --- PROPULSION (5) --- Field Propulsion Drive Cooled Field Propulsion Drive > --- UTILITY (12) ----- Advanced Sensor Array Advanced Signal Interpreter > --- WEAPON (4) ------- (None) > --- INVENTORY (5) ---- Advanced Myomer Leg 0b10 Decoder Chip [Looter] Disintegrator Heavy Shock Bomb Launcher Peak State ------------ > --- POWER ------------ Micro Antimatter Reactor Light Quantum Reactor > --- PROPULSION ------- Biometal Leg Heavy Armored Exoskeleton > --- UTILITY ---------- High-capacity Storage Unit Long-range Sensor Array Advanced Melee Analysis Suite Advanced Melee Analysis Suite Advanced Melee Analysis Suite Experimental Target Analyzer Advanced Actuator Array Experimental Reaction Control System Centrium Light Armor Plating Graphene Brace Advanced Hacking Suite > --- WEAPON ----------- Advanced Micro-nuke Launcher Powered Hammer Plasma Lance Enhanced Force Lance > --- INVENTORY -------- Fusion Reactor Light Antimatter Reactor Myomer Leg Myomer Leg Myomer Leg Advanced Myomer Leg Advanced Myomer Leg Advanced Power Amplifier Makeshift Sensor Array Improved Signal Interpreter 0b10 Decoder Chip [Looter] Advanced Melee Analysis Suite Layered Medium Armor Plating Transdimensional Reconstructor Heavy Disruptor Cannon Heavy Shock Bomb Launcher Improved Plasma Cutter [Rating: 169] Favorites ----------- Power Micro Fission Core Engine Ion Engine Power Core Micro Fission Core Reactor Antimatter Reactor Propulsion Aluminum Leg Treads Improved Treads Leg Aluminum Leg Wheel Armored Huge Wheel Flight Unit Cooled Field Propulsion Drive Utility Advanced Melee Analysis Suite Device Seismic Detector Storage High-capacity Storage Unit Processor Advanced Melee Analysis Suite Hackware Makeshift Hacking Suite Protection Centrium Medium Armor Plating Weapon Phasing Sabre Energy Gun Medium Laser Energy Cannon Phase Cannon Ballistic Gun Light Assault Rifle Ballistic Cannon Advanced Assault Cannon Launcher Heavy Shock Bomb Launcher Special Weapon Improved Plasma Cutter Impact Weapon Mace Slashing Weapon Phasing Sabre Piercing Weapon Spear Build | -11 -10 -9 -8 -7 -7 -7 -7 -6 -6 -6 -6 -5 -5 -5 -5 -5 -5 -4 -4 -4 -4 -3 -3 -2 -2 ------- Run | Yrd Mat Mat Mat Fac Low Low Dat Pro Fac Low Low Fac Was Fac Ext Cet Arc Fac Upp Upp Zhi Pro Res Res Tes Slots Evolved 16 | . . 2 2 2 . . . . 2 . . 2 . . . . . 2 . . . . 2 2 . Power 1 | . . . . . . . . . . . . 1 . . . . . . . . . . . . . Propulsion 3 | . . 1 . 1 . . . . . . . . . . . . . . . . . . 1 . . Utility 10 | . . 1 1 1 . . . . 1 . . 1 . . . . . 2 . . . . 1 2 . Weapon 2 | . . . 1 . . . . . 1 . . . . . . . . . . . . . . . . Parts Attached 139 | 8 1 8 4 9 6 . 1 2 9 4 1 6 2 3 14 4 4 4 4 . 3 5 21 6 10 Power 17 | 2 . 1 1 1 . . . . 1 1 . 1 1 . 1 1 . . 1 . 1 . 3 1 . Engine 4 | 2 . 1 . 1 . . . . . . . . . . . . . . . . . . . . . Core 6 | . . . 1 . . . . . 1 1 . 1 . . 1 . . . 1 . . . . . . Reactor 7 | . . . . . . . . . . . . . 1 . . 1 . . . . 1 . 3 1 . Propulsion 37 | 2 . 3 . 2 4 . . 1 . . . 2 . . 7 1 1 . 1 . 1 4 3 1 4 Treads 10 | . . . . . 2 . . . . . . . . . 4 1 1 . 1 . . 1 . . . Leg 17 | 2 . 3 . 2 . . . . . . . . . . . . . . . . 1 3 3 1 2 Wheel 8 | . . . . . 2 . . 1 . . . 2 . . 3 . . . . . . . . . . Hover . | . . . . . . . . . . . . . . . . . . . . . . . . . . Flight 2 | . . . . . . . . . . . . . . . . . . . . . . . . . 2 Utility 59 | 2 1 1 2 6 1 . . 1 6 3 . 3 1 2 3 1 3 2 2 . 1 . 10 3 5 Device 18 | 1 . . 1 1 . . . . 1 . . 2 . 1 1 . 1 . 1 . . . 5 1 2 Storage 5 | 1 1 . . 1 . . . . 1 . . 1 . . . . . . . . . . . . . Processor 20 | . . . . 3 . . . . 3 3 . . . 1 1 . 2 1 . . . . 2 1 3 Hackware 3 | . . . . . . . . . 1 . . . 1 . . . . . . . . . . 1 . Protection 13 | . . 1 1 1 1 . . 1 . . . . . . 1 1 . 1 1 . 1 . 3 . . Artifact . | . . . . . . . . . . . . . . . . . . . . . . . . . . Weapon 26 | 2 . 3 1 . 1 . 1 . 2 . 1 . . 1 3 1 . 2 . . . 1 5 1 1 Energy Gun 1 | 1 . . . . . . . . . . . . . . . . . . . . . . . . . Energy Cannon 3 | . . . . . . . . . . . . . . . . . . 1 . . . . 1 . 1 Ballistic Gun 3 | 1 . 1 . . . . . . . . . . . . . . . . . . . . 1 . . Ballistic Cannon 2 | . . . . . . . . . . . 1 . . 1 . . . . . . . . . . . Launcher 2 | . . . . . . . . . . . . . . . . . . . . . . . 1 1 . Special Weapon 1 | . . . . . . . . . . . . . . . . 1 . . . . . . . . . Impact Weapon 5 | . . 2 1 . . . 1 . . . . . . . . . . . . . . 1 . . . Slashing Weapon 6 | . . . . . 1 . . . 1 . . . . . 3 . . 1 . . . . . . . Piercing Weapon 3 | . . . . . . . . . 1 . . . . . . . . . . . . . 2 . . Special Melee Weapon . | . . . . . . . . . . . . . . . . . . . . . . . . . . Unidentified Prototypes 17 | . . . . . . . . . 1 . . . 1 . . 2 . . . . 4 . 7 . 2 Corrupted Parts 3 | . . . . . . . . . . . . . . . 1 . . . . . . . . . 2 System Corruption 15 | . . . . . . . . . . . . . . . 9 . . . . . . . . . 6 Parts Lost 72 | . . . 4 . 8 3 . 2 2 2 . . . . 4 . 5 2 5 . . 8 2 11 14 Power 10 | . . . 1 . 1 1 . . . 1 . . . . . . 1 . 1 . . . . 2 2 Propulsion 22 | . . . 1 . 5 . . 2 . . . . . . 3 . 1 . 2 . . 3 . 1 4 Utility 24 | . . . 2 . 1 1 . . 2 1 . . . . 1 . 2 . 1 . . 1 2 5 5 Weapon 16 | . . . . . 1 1 . . . . . . . . . . 1 2 1 . . 4 . 3 3 Highest Loss Streak 12 | . . . 2 . 5 1 . 2 2 1 . . . . 2 . 5 2 3 . . 3 2 10 12 To Critical Strikes 2 | . . . . . . . . . . . . . . . 1 . . . 1 . . . . . . Average Backups 11 | 3 6 8 9 9 12 12 11 7 4 5 5 4 6 8 14 18 18 12 9 10 13 16 16 16 8 Power . | . 1 1 1 1 . . . . . 1 1 . . 1 1 1 . . . . . . . 1 . Propulsion 1 | 1 2 2 3 2 2 2 2 1 . . . . . . 1 2 2 2 . 1 1 3 2 4 3 Utility 5 | . 2 2 1 1 5 6 6 4 1 2 3 3 4 5 8 10 11 6 6 7 8 9 9 5 1 Weapon 2 | . 1 2 3 3 3 4 3 1 1 1 1 1 1 1 2 3 3 2 1 1 1 1 2 2 2 Tool/Special . | . . . . . . . . . . . . . . . . . . . . . . . . . . Unused Backups 15 | 1 . . . 1 . . . 3 . . . . . . . 1 . . . . . . 7 . 2 Power 1 | . . . . 1 . . . . . . . . . . . . . . . . . . . . . Propulsion 3 | . . . . . . . . . . . . . . . . . . . . . . . 3 . . Utility 10 | 1 . . . . . . . 3 . . . . . . . . . . . . . . 4 . 2 Weapon 1 | . . . . . . . . . . . . . . . . 1 . . . . . . . . . Tool/Special . | . . . . . . . . . . . . . . . . . . . . . . . . . . Average Slot Usage (%) 82 | . 100 90 89 98 85 70 57 44 45 64 70 78 88 88 94 94 86 88 99 100 100 94 82 77 47 Engine 1 | . 14 11 8 . 3 . . . . . . . . . . . . . . . . . . . . Core 3 | . . . . 6 3 6 . . 2 5 6 11 6 5 5 3 2 5 7 10 8 5 1 . . Reactor 2 | . . . . . . . . . . . . . 3 5 5 6 8 5 1 . 1 5 7 7 3 Treads 6 | . . . . . 6 15 15 8 . . . . . . 11 17 17 15 20 21 21 8 . . . Leg 7 | . 28 28 26 29 9 . . . . . . . . . . . . . . . . 11 17 7 5 Wheel 2 | . . . . . 4 . . 2 6 6 6 7 17 17 7 . . . . . . . . . . Device 8 | . 14 11 9 11 7 4 . . 5 . . 4 5 9 11 11 6 5 6 10 10 10 14 18 9 Storage 5 | . 14 11 9 7 7 7 7 4 4 6 6 5 5 5 5 5 5 5 5 5 5 5 4 4 2 Processor 14 | . . . . 9 15 15 15 8 6 24 26 23 20 12 15 17 17 24 24 21 21 21 17 16 14 Hackware 2 | . . . . . . . . . 5 6 6 5 7 11 4 . . . . . . . . 3 2 Protection 5 | . . 6 8 7 6 7 7 6 6 . . . . . 2 5 5 8 9 10 10 10 8 4 2 Ballistic Cannon 1 | . . . . . . . . . . . 3 5 5 5 5 5 3 . . . . . . . . Impact Weapon 4 | . . 6 27 23 12 7 11 13 . . . . . . . . . . . . . 1 4 3 . Slashing Weapon 5 | . . . . . 6 5 . . 3 6 6 5 5 5 13 16 17 14 10 10 10 7 . . . Piercing Weapon 2 | . . . . . . . . . 2 6 6 5 5 5 1 . . . 4 5 5 3 2 7 2 Peak Build Rating 169 | 8 7 12 16 29 37 37 32 32 46 45 49 62 70 74 83 104 104 120 119 105 112 119 150 169 152 Average Rating 68 | 6 7 9 14 24 32 35 29 22 32 43 47 59 66 70 78 98 99 114 106 104 106 108 126 156 92 On Entrance 62 | . 7 7 12 16 29 37 29 32 12 38 44 49 62 70 71 83 104 102 119 104 105 108 102 150 126 Avg Prop Armor Cover (%) 6 | . . . . . 6 . . . . . . . . . . . . . . . . . . . . Naked Turns 98 | . . . . . . . . 48 . . . . . . . . . . . . . . . . 50 Heaviest Build 108 | 14 29 34 37 44 45 41 34 34 26 23 30 72 81 82 92 107 107 100 99 84 85 85 108 107 80 Greatest Support 143 | 20 20 30 30 40 60 60 60 60 28 28 28 48 48 48 99 126 130 130 130 107 107 115 143 118 115 Greatest Overweight (x) 4 | . 1 1 1 1 4 . . 1 . . 1 2 1 1 3 . . . . . . 1 . . . Average Overweight (x) . | . . . . . . . . . . . . 1 1 1 . . . . . . . . . . . Largest Inventory Capacity 20 | 8 15 15 15 15 15 15 15 15 10 10 10 20 20 20 20 20 20 20 20 20 20 20 20 20 20 Average Capacity 16 | 7 14 15 15 15 15 15 15 10 8 10 10 15 20 20 20 20 20 20 20 20 20 20 20 20 15 Most Carried 20 | 7 7 13 11 15 15 12 12 10 5 6 6 6 7 10 18 20 20 15 14 12 18 20 20 19 12 Average Carried 11 | 3 6 8 9 9 12 12 11 7 4 5 5 4 6 8 15 19 19 13 10 11 14 16 17 17 9 Final Capacity 20 | 8 15 15 15 15 15 15 15 5 10 10 10 20 20 20 20 20 20 20 20 20 20 20 20 20 5 Final Carried 20 | 6 6 12 9 13 12 12 10 5 5 5 6 6 7 10 18 20 15 14 11 12 18 15 20 13 5 Class Distribution -------------------- 28% | Scavenger-Gladiator 22% | Mutant 17% | Gladiator 10% | Scavenger-Mutant 9% | Commander-Gladiator 8% | Hacker-Gladiator 3% | Derelict-Gladiator Dominant Class ---------------- Mutant | -10/Materials Scavenger-Mutant | -9/Materials Scavenger-Mutant | -8/Materials Scavenger-Mutant | -7/Factory Scavenger-Gladiator | -7/Lower Caves Scavenger-Gladiator | -7/Lower Caves Mutant | -7/Data Miner Gladiator | -6/Proximity Caves Mutant | -6/Factory Gladiator | -6/Lower Caves Derelict-Gladiator | -6/Lower Caves Derelict-Gladiator | -5/Factory Hacker-Gladiator | -5/Waste Hacker-Gladiator | -5/Factory Commander-Gladiator | -5/Extension Commander-Gladiator | -5/Cetus Commander-Gladiator | -5/Archives Scavenger-Gladiator | -4/Factory Scavenger-Gladiator | -4/Upper Caves Scavenger-Gladiator | -4/Upper Caves Scavenger-Gladiator | -4/Zhirov Scavenger-Gladiator | -3/Proximity Caves Gladiator | -3/Research Gladiator | -2/Research Scavenger-Mutant | -2/Testing Resources | -11 -10 -9 -8 -7 -7 -7 -7 -6 -6 -6 -6 -5 -5 -5 -5 -5 -5 -4 -4 -4 -4 -3 -3 -2 -2 ----------- Run | Yrd Mat Mat Mat Fac Low Low Dat Pro Fac Low Low Fac Was Fac Ext Cet Arc Fac Upp Upp Zhi Pro Res Res Tes Matter Collected 2276 | 297 . 116 35 18 157 . . 40 . 116 . 21 59 71 171 101 . . 165 . . 150 344 325 90 Remotely . | . . . . . . . . . . . . . . . . . . . . . . . . . . Salvage Created 4481 | 188 . 416 245 . 206 . . 64 . 249 . 21 . 41 457 . . 221 271 . . 402 590 894 216 Parts 216 | 19 . 23 5 . 11 . . 2 . 21 . 4 . 1 14 . . 8 21 . . 12 27 37 11 Haulers Intercepted 1 | . . 1 . . . . . . . . . . . . . . . . . . . . . . . Recyclers Shooed 1 | . 1 . . . . . . . . . . . . . . . . . . . . . . . . Parts Field Recycled . | . . . . . . . . . . . . . . . . . . . . . . . . . . Retrieved Matter . | . . . . . . . . . . . . . . . . . . . . . . . . . . Parts Self-Destructed 90 | . . . . . 10 7 . 18 . 20 . . . . . . . . 23 . . 12 . . . Prevented 10 | . . . . . 4 . . 6 . . . . . . . . . . . . . . . . . Parts Restored . | . . . . . . . . . . . . . . . . . . . . . . . . . . Kills | -11 -10 -9 -8 -7 -7 -7 -7 -6 -6 -6 -6 -5 -5 -5 -5 -5 -5 -4 -4 -4 -4 -3 -3 -2 -2 ------- Run | Yrd Mat Mat Mat Fac Low Low Dat Pro Fac Low Low Fac Was Fac Ext Cet Arc Fac Upp Upp Zhi Pro Res Res Tes Combat Hostiles Destroyed 80 | . . 9 5 . 5 . . 2 . 8 . . . 2 3 . . 3 6 . . 6 11 19 1 Melee 49 | . . 2 3 . 5 . . 2 . 8 . . . 2 3 . . 3 6 . . 6 7 1 1 Guns 5 | . . 5 . . . . . . . . . . . . . . . . . . . . . . . AOE 16 | . . . . . . . . . . . . . . . . . . . . . . . 3 13 . Classes Destroyed 17 | 2 . 3 3 . 2 . . . . 1 . . . 1 . . . 1 . . . 1 1 1 1 Worker 5 | . . . 1 . . . . . . . . . . . . . . . . . . . 2 1 1 Builder 3 | . . . 1 . . . . . . . . . . . 1 . . . . . . . . 1 . Tunneler 6 | 5 . . . . . . . . . . . 1 . . . . . . . . . . . . . Hauler 1 | . . 1 . . . . . . . . . . . . . . . . . . . . . . . Recycler 3 | 1 . . . . . . . . . . . . . . 2 . . . . . . . . . . Watcher 1 | . . . . . . . . . . . . . . . . . . . . . . . . 1 . Swarmer 28 | . . . . . 4 . . 1 . 6 . . . 1 . . . . 3 . . . 3 10 . Grunt 22 | . . 7 4 . . . . 1 . 1 . . . . 3 . . 2 . . . 4 . . . Brawler 1 | . . . 1 . . . . . . . . . . . . . . . . . . . . . . Duelist 1 | . . . . . . . . . . . . . . . . . . 1 . . . . . . . Researcher 2 | . . . . . . . . . . . . . . . . . . . . . . . . . 2 Sentry 4 | . . 2 . . . . . . . . . . . . . . . . 1 . . . . 1 . Demolisher 1 | . . . . . . . . . . . . . . 1 . . . . . . . . . . . Hunter 14 | . . . . . . . . . . . . . . . . . . . . . . 2 3 8 1 Programmer 5 | . . . . . . . . . . 1 . . . . . . . . 2 . . . 2 . . Behemoth 1 | . . . . . 1 . . . . . . . . . . . . . . . . . . . . Striker 3 | . . . . . . . . . . . . . . . . . . . . . . . 3 . . Decomposer 1 | . . . . . 1 . . . . . . . . . . . . . . . . . . . . Best Kill Streak 13 | 2 . 3 3 . 2 . . 1 . 4 . 1 . 2 2 . . 3 3 . . 4 4 13 1 Combat Bots Only 10 | . . 3 2 . 2 . . 1 . 4 . . . 2 1 . . 3 3 . . 4 3 10 1 Max Kills in Single Turn 4 | 1 . 1 1 . 1 . . 1 . 1 . 1 . 1 1 . . 1 1 . . 1 3 4 1 Gunslinging . | . . . . . . . . . . . . . . . . . . . . . . . . . . Exploded 4 | . . . . . . . . . . . . . . . . . . . . . . . 3 4 . Melee 1 | . . 1 1 . 1 . . 1 . 1 . . . 1 1 . . 1 1 . . 1 1 1 1 Uniques/NPCs Destroyed . | . . . . . . . . . . . . . . . . . . . . . . . . . . Combat | -11 -10 -9 -8 -7 -7 -7 -7 -6 -6 -6 -6 -5 -5 -5 -5 -5 -5 -4 -4 -4 -4 -3 -3 -2 -2 -------- Run | Yrd Mat Mat Mat Fac Low Low Dat Pro Fac Low Low Fac Was Fac Ext Cet Arc Fac Upp Upp Zhi Pro Res Res Tes Hostile Shots Fired 1222 | . . 52 37 1 84 68 . 65 35 40 . 6 . 16 22 2 . 36 49 . . 130 152 206 221 Missed 397 | . . 18 10 . 24 24 . 22 13 5 . 4 . 3 7 2 . 6 14 . . 40 64 70 71 Hits 825 | . . 34 27 1 60 44 . 43 22 35 . 2 . 13 15 . . 30 35 . . 90 88 136 150 Melee 18 | . . . 2 . . . . . . . . . . . . . . 12 . . . . 4 . . Projectile 807 | . . 34 25 1 60 44 . 43 22 35 . 2 . 13 15 . . 18 35 . . 90 84 136 150 AOE 6 | . . . . . . . . . . . . . . 6 . . . . . . . . . . . Critical Strikes 29 | . . . 2 . . 1 . . . . . . . . 2 . . 5 2 . . 3 3 . 11 Actively Blocked 9 | . . . . . . . . . . . . . . . . . . . . . . . . . 9 Damage Taken 16453 | . . 412 473 16 987 649 . 534 238 536 . 18 . 307 374 . 1166 821 643 . . 1701 1407 3369 2802 Core 3069 | . . 103 79 . 179 45 . 268 77 217 . . . 23 81 . 109 93 16 . . 175 200 388 1016 Absorbed by Shields 727 | . . . . . . . . . . . . 7 . 115 133 . 108 . . . . . 352 12 . Redirected to Shielding 225 | . . . . . . . . 25 44 . . . . . . . . . . . . 60 96 . . Regen/Repaired (Parts) 90 | . . . . . . . . . . . . . 90 . . . . . . . . . . . . Core Remaining (%) 76 | 100 100 74 85 . . . . 29 . . 65 . . . . . 78 . . . . 75 84 . . Volleys Fired 74 | 17 1 22 . . . . . . . . . . . 2 . . . . . . . . 4 26 2 Largest 2 | 2 2 2 . . . . . . . . . . . 1 . . . . . . . . 1 1 1 Hottest 110 | 70 70 73 . . . . . . . . . . . 44 . . . . . . . . 110 46 110 Shots Fired 116 | 34 2 44 . . . . . . . . . . . 2 . 1 . . . 1 . . 4 26 2 Gun 81 | 34 2 44 . . . . . . . . . . . . . . . . . . . . 1 . . Cannon 6 | . . . . . . . . . . . . . . 2 . 1 . . . 1 . . 1 . 1 Launcher 28 | . . . . . . . . . . . . . . . . . . . . . . . 2 26 . Special 1 | . . . . . . . . . . . . . . . . . . . . . . . . . 1 Kinetic 44 | 17 1 22 . . . . . . . . . . . 2 . 1 . . . . . . 1 . . Thermal 42 | 17 1 22 . . . . . . . . . . . . . . . . . 1 . . . . 1 Explosive 13 | . . . . . . . . . . . . . . . . . . . . . . . 2 11 . Electromagnetic 17 | . . . . . . . . . . . . . . . . . . . . . . . 1 15 1 Robot Hit Streak 13 | 5 . 13 . . . . . . . . . . . . . 2 . . . . . . . 2 4 Robot Miss Streak 3 | 2 2 2 . . . . . . . . . . . . . . . . . . . . 2 3 . Penetration Max . | . . . . . . . . . . . . . . . . . . . . . . . . . . Secondary Targets . | . . . . . . . . . . . . . . . . . . . . . . . . . . Shots Hit Robots 275 | 21 . 37 18 . 15 . . 8 2 18 . 1 . 9 25 1 . 22 18 . . 31 23 15 11 Core Hits 131 | 9 . 13 5 . 7 . . 2 . 9 . . . 2 6 1 . 6 6 . . 11 14 35 5 Critical Kills 3 | . . . 1 . . . . 1 . . . . . . . . . . . . . . 1 . . Critical Parts Destroyed 11 | . . 3 3 . 1 . . 1 . . . . . . . . . . . . . . 3 . . Critical Strikes 50 | . . 5 4 . 1 . . 2 1 5 . . . 2 5 . . 6 2 . . 6 6 4 1 Burn 2 | . . 2 . . . . . . . . . . . . . . . . . . . . . . . Smash 15 | . . 3 4 . 1 . . 2 . . . . . . . . . . . . . . 5 . . Sever 24 | . . . . . . . . . 1 3 . . . 2 5 . . 6 2 . . 5 . . . Impale 9 | . . . . . . . . . . 2 . . . . . . . . . . . 1 1 4 1 Melee Attacks 300 | . . 7 26 . 22 9 . 12 8 24 . 2 . 23 30 . . 22 19 . . 35 31 18 12 Impact 66 | . . 7 26 . 2 2 . 12 . . . . . . . . . . . . . . 14 3 . Slashing 169 | . . . . . 20 7 . . 7 17 . 1 . 22 27 . . 22 17 . . 29 . . . Piercing 65 | . . . . . . . . . 1 7 . 1 . 1 3 . . . 2 . . 6 17 15 12 Sneak Attacks 18 | . . . 2 . 1 . . . . . . 1 . . 7 . . 3 . . . . 1 . 3 Combat Hostiles 2 | . . . . . . . . . . . . . . . . . . 2 . . . . . . . Follow-up Attacks 48 | . . . 3 . 2 . . 3 . 3 . . . . 6 . . 7 5 . . 12 4 3 . Damage Inflicted 14218 | 216 . 503 634 . 632 . . 276 95 748 . 81 . 399 1379 30 . 1063 837 . . 1383 1609 3628 705 Guns 555 | 216 . 339 . . . . . . . . . . . . . . . . . . . . . . . Cannons 109 | . . . . . . . . . . . . . . . . 30 . . . . . . 36 . 43 Explosions 3585 | . . . . . . . . . . . . . . . . . . . . . . . 357 3228 . Melee 9956 | . . 164 634 . 632 . . 276 94 748 . 81 . 399 1379 . . 1063 837 . . 1383 1216 400 650 Ramming 1 | . . . . . . . . . 1 . . . . . . . . . . . . . . . . Kinetic 247 | 89 . 128 . . . . . . . . . . . . . 30 . . . . . . . . . Thermal 610 | 127 . 211 . . . . . . . . . . . . . . . . . . . . . 260 12 Explosive 2291 | . . . . . . . . . . . . . . . . . . . . . . . 357 1934 . Electromagnetic 1113 | . . . . . . . . . . . . . . . . . . . . . . . 36 1034 43 Impact 1799 | . . 164 634 . 63 . . 276 . . . . . . . . . . . . . . 620 42 . Slashing 6193 | . . . . . 569 . . . 94 656 . 81 . 399 1349 . . 1063 769 . . 1213 . . . Piercing 1964 | . . . . . . . . . . 92 . . . . 30 . . . 68 . . 170 596 358 650 Highest Corruption 10 | . . . . . . . . . . . . . . . 10 10 10 . 1 1 1 1 2 . 7 Average Corruption 4 | . . . . . . . . . . . . . . . 6 10 10 . 1 1 1 1 1 . 4 Corruption Purged . | . . . . . . . . . . . . . . . . . . . . . . . . . . Corruption Blocked . | . . . . . . . . . . . . . . . . . . . . . . . . . . Effects 74 | . . . . . . . . . . . . . . . 18 27 6 . 4 3 4 . 7 . 5 Message Errors 17 | . . . . . . . . . . . . . . . 5 4 1 . 3 1 1 . . . 2 Matter Fused 20 | . . . . . . . . . . . . . . . 4 9 1 . 1 . 3 . . . 2 Heat Flow Errors 8 | . . . . . . . . . . . . . . . 4 4 . . . . . . . . . Energy Discharges 12 | . . . . . . . . . . . . . . . 2 5 1 . . . . . 4 . . Parts Fused 1 | . . . . . . . . . . . . . . . . . 1 . . . . . . . . Data Loss (minor) 8 | . . . . . . . . . . . . . . . 1 4 1 . . 1 . . 1 . . Data Loss (major) 2 | . . . . . . . . . . . . . . . . . . . . . . . 2 . . Misfires 2 | . . . . . . . . . . . . . . . . 1 . . . 1 . . . . . Alerts 4 | . . . . . . . . . . . . . . . 2 . 1 . . . . . . . 1 Overload Shots . | . . . . . . . . . . . . . . . . . . . . . . . . . . Overflow Damage 1174 | . . 92 145 . 60 . . 31 40 5 . 41 . 4 231 . . 61 47 . . . 260 90 67 Projectiles 7 | . . . . . . . . . . . . . . . . . . . . . . . . . 7 Explosions 63 | . . . . . . . . . . . . . . . . . . . . . . . . 63 . Melee 1104 | . . 92 145 . 60 . . 31 40 5 . 41 . 4 231 . . 61 47 . . . 260 27 60 Knockbacks 12 | . . 1 3 . 1 . . 1 . . . . . . . 1 . . . . . . 5 . . Impact 11 | . . 1 3 . 1 . . 1 . . . . . . . . . . . . . . 5 . . Kinetic 1 | . . . . . . . . . . . . . . . . 1 . . . . . . . . . Secondary . | . . . . . . . . . . . . . . . . . . . . . . . . . . Self-Inflicted Damage 190 | . . . . . . . . . . . . . . . . . . . . . . . 27 163 . Shots 5 | . . . . . . . . . . . . . . . . . . . . . . . 1 4 . Rammed 1 | . . . . . . . . . 1 . . . . . . . . . . . . . . . . Targets Rammed 1 | . . . . . . . . . 1 . . . . . . . . . . . . . . . . Kicked . | . . . . . . . . . . . . . . . . . . . . . . . . . . Crushed . | . . . . . . . . . . . . . . . . . . . . . . . . . . Highest Temperature 314 | 70 30 191 18 . . 314 . . . . . . . . 276 224 . 26 . 45 . 53 58 12 30 Average Temperature 70 | 29 19 70 12 . . 175 . . . . . . . . 116 97 . 11 . 28 . 22 32 10 22 Received Heat Transfer 2121 | . . 204 261 9 60 416 . 81 57 54 . . . . 66 . . 109 45 . . 357 15 81 306 Siege Activations . | . . . . . . . . . . . . . . . . . . . . . . . . . . Martial Activations . | . . . . . . . . . . . . . . . . . . . . . . . . . . Shielding Activations . | . . . . . . . . . . . . . . . . . . . . . . . . . . Robots Disrupted . | . . . . . . . . . . . . . . . . . . . . . . . . . . Combat Hostiles . | . . . . . . . . . . . . . . . . . . . . . . . . . . Robots Corrupted 12 | . . 2 2 . . . . . . . . . . . . . . . . . . . 2 6 . Combat Hostiles 10 | . . 2 2 . . . . . . . . . . . . . . . . . . . 1 5 . Parts Fried 15 | . . 1 2 . 2 . . . . . . . . . . . . . . . . . 2 8 . Impact Corruptions 20 | . . 4 6 . 1 . . 1 . . . . . . . . . . . . . . 8 . . Robots Melted . | . . . . . . . . . . . . . . . . . . . . . . . . . . Combat Hostiles . | . . . . . . . . . . . . . . . . . . . . . . . . . . Parts Melted 2 | . . 2 . . . . . . . . . . . . . . . . . . . . . . . Heat Transferred 1334 | 370 . 777 . . . . . . . . . . . . . . . . . . . . . 150 37 Parts Sabotaged . | . . . . . . . . . . . . . . . . . . . . . . . . . . Parts Stolen . | . . . . . . . . . . . . . . . . . . . . . . . . . . Parts Stripped . | . . . . . . . . . . . . . . . . . . . . . . . . . . Power Chain Reactions 3 | . . . . . . . . . . . . . . . . . . . . . . . . 3 . Alert | -11 -10 -9 -8 -7 -7 -7 -7 -6 -6 -6 -6 -5 -5 -5 -5 -5 -5 -4 -4 -4 -4 -3 -3 -2 -2 ------- Run | Yrd Mat Mat Mat Fac Low Low Dat Pro Fac Low Low Fac Was Fac Ext Cet Arc Fac Upp Upp Zhi Pro Res Res Tes Maximum Alert Level 3 | . . . . . . . . . 3 . . . . 1 3 2 1 . . . . . 1 2 1 Low Security (%) 51 | 100 100 100 100 100 . . . . . . . 100 100 89 23 . 50 100 . . . . 2 66 29 Level 1 28 | . . . . . . . . . . . . . . 10 6 86 49 . . . . . 97 5 70 Level 2 13 | . . . . . . . . . 74 . . . . . 39 13 . . . . . . . 28 . Level 3 6 | . . . . . . . . . 25 . . . . . 30 . . . . . . . . . . Level 4 . | . . . . . . . . . . . . . . . . . . . . . . . . . . Level 5 . | . . . . . . . . . . . . . . . . . . . . . . . . . . High Security . | . . . . . . . . . . . . . . . . . . . . . . . . . . Max Security . | . . . . . . . . . . . . . . . . . . . . . . . . . . Peak Influence 894 | 5 . 90 50 5 . . . . 750 . . 137 11 252 894 449 345 92 . . . . 330 697 386 Initial 750 | . . . 25 . . . . . 750 . . 137 11 . 119 449 136 92 . . . . 327 148 386 Average 235 | 1 . 36 21 . . . . . 618 . . 83 1 68 512 356 216 56 . . . . 260 242 292 Influence Increases 6421 | 30 . 237 145 5 120 . . 107 821 205 . 5 . 496 1484 357 299 85 140 . . 200 673 839 173 Destroy 0b10 Robot/C 2640 | . . 180 100 . 100 . . 60 . 160 . . . 180 600 160 140 60 120 . . 120 220 380 60 Destroy 0b10 Robot/NC 125 | 30 . 5 10 . . . . . . . . 5 . 5 30 10 . . . . . . 10 15 5 Destroy Leader 372 | . . 52 20 . 20 . . 10 . 30 . . . 22 56 . . 10 20 . . 20 50 62 . Allied During Kill 1210 | . . . . . . . . 7 . . . . . 207 686 170 140 . . . . . . . . Successful Hack 36 | . . . . 5 . . . . 7 . . . . 5 12 . . . . . . . . 7 . Disable Machine 120 | . . . 15 . . . . . 15 . . . . 15 . 15 15 . . . . . 30 . 15 Destroy Structure 508 | . . . . . . . . . 4 . . . . 32 100 2 4 . . . . . 48 315 3 Advance Influence 1050 | . . . . . . . . . 750 . . . . . . . . . . . . . 300 . . Lose Combat Pursuer 360 | . . . . . . . . 30 45 15 . . . 30 . . . 15 . . . 60 15 60 90 Influence Decreases 6216 | 30 . 177 205 5 120 . . 107 342 388 77 192 32 252 924 821 374 303 175 12 . 160 449 416 655 Entered New Map 1682 | . . . 35 . . . . . . 178 57 82 21 . 125 355 204 173 19 3 . . 13 116 301 Time Decay 3223 | 30 . 177 140 5 100 . . 107 222 190 20 110 11 162 438 286 60 110 116 9 . 110 416 190 214 Search Patrol Dispatched 100 | . . . . . . . . . 100 . . . . . . . . . . . . . . . . Lost Part 560 | . . . 30 . 20 . . . 20 20 . . . . 40 . 50 20 40 . . 50 20 110 140 Lost Ally 510 | . . . . . . . . . . . . . . 90 180 180 60 . . . . . . . . Purge Threat 141 | . . . . . . . . . . . . . . . 141 . . . . . . . . . . Squads Dispatched 19 | . 1 2 2 3 . . . . 1 . . . . . 3 . . . . . . . 2 2 3 Investigation 3 | . 1 1 . 1 . . . . . . . . . . . . . . . . . . . . . Extermination 3 | . . . . 1 . . . . 1 . . . . . . . . . . . . . . . 1 Reinforcement 11 | . . 1 2 1 . . . . . . . . . . 2 . . . . . . . 2 2 1 Assault 2 | . . . . . . . . . . . . . . . 1 . . . . . . . . . 1 Garrison . | . . . . . . . . . . . . . . . . . . . . . . . . . . Intercept . | . . . . . . . . . . . . . . . . . . . . . . . . . . Searches Triggered 1 | . . . . . . . . . 1 . . . . . . . . . . . . . . . . Data Miner Redirects 2 | . . . . . . . . . . . . . . . . . . . . . . . . . 2 Construction Impeded 2 | . . . . . . . . . . . . . . . . . . . . . . . 1 1 . Haulers Reinforced . | . . . . . . . . . . . . . . . . . . . . . . . . . . Active Scanning Responses . | . . . . . . . . . . . . . . . . . . . . . . . . . . Cargo Convoy Interrupts . | . . . . . . . . . . . . . . . . . . . . . . . . . . Stealth | -11 -10 -9 -8 -7 -7 -7 -7 -6 -6 -6 -6 -5 -5 -5 -5 -5 -5 -4 -4 -4 -4 -3 -3 -2 -2 --------- Run | Yrd Mat Mat Mat Fac Low Low Dat Pro Fac Low Low Fac Was Fac Ext Cet Arc Fac Upp Upp Zhi Pro Res Res Tes Distress Signals 24 | . . 1 2 . . . . . . . . 1 . . 3 2 . . . . . 2 10 1 2 Communications Jammed 2 | . . . . . . . . . . . . . . . . . . . . . . 2 . . . Distress Signals . | . . . . . . . . . . . . . . . . . . . . . . . . . . Times Spotted 224 | . 5 12 14 1 5 1 . 10 9 10 . 2 . 11 33 10 . 5 7 . . 13 22 23 31 Peak Tracking Total 12 | . 2 4 7 1 4 1 . 4 4 4 . 3 . 4 7 5 . 4 4 . . 5 4 8 12 Tactical Retreats 14 | . . . . . . . . 2 1 1 . . . 1 . . . 1 . . . 1 1 3 3 Traps | -11 -10 -9 -8 -7 -7 -7 -7 -6 -6 -6 -6 -5 -5 -5 -5 -5 -5 -4 -4 -4 -4 -3 -3 -2 -2 ------- Run | Yrd Mat Mat Mat Fac Low Low Dat Pro Fac Low Low Fac Was Fac Ext Cet Arc Fac Upp Upp Zhi Pro Res Res Tes Traps Triggered 12 | . 1 . 1 . . . . . 1 . . 1 . 3 2 . . . . . . . 1 . 2 Indirectly . | . . . . . . . . . . . . . . . . . . . . . . . . . . Trap Hack Attempts . | . . . . . . . . . . . . . . . . . . . . . . . . . . Triggered . | . . . . . . . . . . . . . . . . . . . . . . . . . . Disarmed . | . . . . . . . . . . . . . . . . . . . . . . . . . . Reprogrammed . | . . . . . . . . . . . . . . . . . . . . . . . . . . Reused . | . . . . . . . . . . . . . . . . . . . . . . . . . . Traps Extracted . | . . . . . . . . . . . . . . . . . . . . . . . . . . Installed . | . . . . . . . . . . . . . . . . . . . . . . . . . . Triggered . | . . . . . . . . . . . . . . . . . . . . . . . . . . Machines | -11 -10 -9 -8 -7 -7 -7 -7 -6 -6 -6 -6 -5 -5 -5 -5 -5 -5 -4 -4 -4 -4 -3 -3 -2 -2 ---------- Run | Yrd Mat Mat Mat Fac Low Low Dat Pro Fac Low Low Fac Was Fac Ext Cet Arc Fac Upp Upp Zhi Pro Res Res Tes Machines Disabled 8 | . . . 1 . . . . . 1 . . . . 1 . 1 1 . . . . . 2 . 1 Max in Single Turn 1 | . . . 1 . . . . . 1 . . . . 1 . 1 . . . . . . 1 . 1 Garrison Access 3 | . . . . . . . . . . . . 1 . 1 . . . . . . . . 1 . . Machines Repaired . | . . . . . . . . . . . . . . . . . . . . . . . . . . Machines Dismantled 1 | . . . . . . . . . . . . . . . . 1 . . . . . . . . . Machines Sabotaged . | . . . . . . . . . . . . . . . . . . . . . . . . . . Overloaded Fab Kills . | . . . . . . . . . . . . . . . . . . . . . . . . . . Hacking | -11 -10 -9 -8 -7 -7 -7 -7 -6 -6 -6 -6 -5 -5 -5 -5 -5 -5 -4 -4 -4 -4 -3 -3 -2 -2 --------- Run | Yrd Mat Mat Mat Fac Low Low Dat Pro Fac Low Low Fac Was Fac Ext Cet Arc Fac Upp Upp Zhi Pro Res Res Tes Machines Accessed 31 | . . 3 1 5 1 . 4 . 2 . . 2 . 2 2 . . 1 . 1 4 . 2 1 . Terminals 16 | . . 3 1 3 1 . . . 2 . . . . 1 2 . . 1 . . . . 1 1 . Fabricators 2 | . . . . 1 . . . . . . . 1 . . . . . . . . . . . . . Repair Stations . | . . . . . . . . . . . . . . . . . . . . . . . . . . Recycling Units . | . . . . . . . . . . . . . . . . . . . . . . . . . . Scanalyzers . | . . . . . . . . . . . . . . . . . . . . . . . . . . Garrison Access 4 | . . . . 1 . . . . . . . 1 . 1 . . . . . . . . 1 . . Total Hacks 105 | . . 7 2 10 1 . 29 . 5 . . 3 . 4 18 . . 1 . 1 17 . 4 3 . Successful 65 | . . . . 3 1 . 29 . 1 . . 2 . 2 7 . . . . 1 17 . 1 1 . Failed 40 | . . 7 2 7 . . . . 4 . . 1 . 2 11 . . 1 . . . . 3 2 . Catastrophic 7 | . . 3 1 . . . . . . . . . . . . . . 1 . . . . 1 1 . Database Lockouts . | . . . . . . . . . . . . . . . . . . . . . . . . . . Manual 28 | . . 7 . 1 . . . . 5 . . . . 2 7 1 . 1 . . . . 1 3 . Terminals 46 | . . 7 2 6 1 . . . 5 . . . . 2 18 . . 1 . . . . 1 3 . Fabricators 3 | . . . . 1 . . . . . . . 2 . . . . . . . . . . . . . Repair Stations . | . . . . . . . . . . . . . . . . . . . . . . . . . . Recycling Units . | . . . . . . . . . . . . . . . . . . . . . . . . . . Scanalyzers . | . . . . . . . . . . . . . . . . . . . . . . . . . . Garrison Access 9 | . . . . 3 . . . . . . . 1 . 2 . . . . . . . . 3 . . Terminal Hacks 59 | . . . . 2 1 . 29 . 1 . . . . 1 6 . . . . 1 17 . . 1 . Record 17 | . . . . . 1 . 11 . . . . . . . . . . . . . 5 . . . . Part Schematic 14 | . . . . . . . 10 . . . . . . . . . . . . . 4 . . . . Robot Schematic 5 | . . . . . . . 5 . . . . . . . . . . . . . . . . . . Robot Analysis 6 | . . . . . . . . . . . . . . . 2 . . . . . 4 . . . . Prototype ID Bank 8 | . . . . . . . 3 . . . . . . . 1 . . . . . 4 . . . . Open Door 1 | . . . . . . . . . . . . . . . . . . . . 1 . . . . . Open DSF 1 | . . . . 1 . . . . . . . . . . . . . . . . . . . . . Branch Access Points 5 | . . . . 1 . . . . 1 . . . . 1 1 . . . . . . . . 1 . Unreport Threat 1 | . . . . . . . . . . . . . . . 1 . . . . . . . . . . Zone Layout 1 | . . . . . . . . . . . . . . . 1 . . . . . . . . . . Fabricator Hacks 2 | . . . . 1 . . . . . . . 1 . . . . . . . . . . . . . Load Schematic 1 | . . . . . . . . . . . . 1 . . . . . . . . . . . . . Build 1 | . . . . 1 . . . . . . . . . . . . . . . . . . . . . Repair Station Hacks . | . . . . . . . . . . . . . . . . . . . . . . . . . . Recycling Unit Hacks . | . . . . . . . . . . . . . . . . . . . . . . . . . . Scanalyzer . | . . . . . . . . . . . . . . . . . . . . . . . . . . Garrison Access Hacks 3 | . . . . . . . . . . . . 1 . 1 . . . . . . . . 1 . . Seal Access 3 | . . . . . . . . . . . . 1 . 1 . . . . . . . . 1 . . Unauthorized Hacks 1 | . . . . . . . . . . . . . . . 1 . . . . . . . . . . Terminals 1 | . . . . . . . . . . . . . . . 1 . . . . . . . . . . Disrupt 1 | . . . . . . . . . . . . . . . 1 . . . . . . . . . . Fabricators . | . . . . . . . . . . . . . . . . . . . . . . . . . . Repair Stations . | . . . . . . . . . . . . . . . . . . . . . . . . . . Recycling Units . | . . . . . . . . . . . . . . . . . . . . . . . . . . Scanalyzers . | . . . . . . . . . . . . . . . . . . . . . . . . . . Garrison Access . | . . . . . . . . . . . . . . . . . . . . . . . . . . Data Cores Recovered . | . . . . . . . . . . . . . . . . . . . . . . . . . . Used . | . . . . . . . . . . . . . . . . . . . . . . . . . . Hacking Detections 15 | . . 3 1 4 . . . . 1 . . 1 . . 1 . . 1 . . . . 2 1 . Full Trace Events 2 | . . 1 . 1 . . . . . . . . . . . . . . . . . . . . . Feedback Events . | . . . . . . . . . . . . . . . . . . . . . . . . . . Feedback Blocked . | . . . . . . . . . . . . . . . . . . . . . . . . . . Robot Schematics Acquired 6 | . . . . . . . 5 . . . . . . . . . . . . . . . . . 1 Robots Built 2 | . . . . 2 . . . . . . . . . . . . . . . . . . . . . Authchips . | . . . . . . . . . . . . . . . . . . . . . . . . . . Time 40 | . . . . 40 . . . . . . . . . . . . . . . . . . . . . Total Robot Build Rating 2 | . . . . 2 . . . . . . . . . . . . . . . . . . . . . Part Schematics Acquired 23 | . . . . . . . 10 . . . . . . . . . . . . . 4 . . . 9 Parts Built . | . . . . . . . . . . . . . . . . . . . . . . . . . . Authchips . | . . . . . . . . . . . . . . . . . . . . . . . . . . Time . | . . . . . . . . . . . . . . . . . . . . . . . . . . Total Part Build Rating . | . . . . . . . . . . . . . . . . . . . . . . . . . . Part Studies Acquired . | . . . . . . . . . . . . . . . . . . . . . . . . . . Parts Repaired . | . . . . . . . . . . . . . . . . . . . . . . . . . . Time . | . . . . . . . . . . . . . . . . . . . . . . . . . . Parts Recycled . | . . . . . . . . . . . . . . . . . . . . . . . . . . Recycled Matter . | . . . . . . . . . . . . . . . . . . . . . . . . . . Retrieved Matter . | . . . . . . . . . . . . . . . . . . . . . . . . . . Retrieved Components . | . . . . . . . . . . . . . . . . . . . . . . . . . . Parts Scanalyzed . | . . . . . . . . . . . . . . . . . . . . . . . . . . Part Schematics Acquired . | . . . . . . . . . . . . . . . . . . . . . . . . . . Parts Damaged . | . . . . . . . . . . . . . . . . . . . . . . . . . . Bothacking | -11 -10 -9 -8 -7 -7 -7 -7 -6 -6 -6 -6 -5 -5 -5 -5 -5 -5 -4 -4 -4 -4 -3 -3 -2 -2 ------------ Run | Yrd Mat Mat Mat Fac Low Low Dat Pro Fac Low Low Fac Was Fac Ext Cet Arc Fac Upp Upp Zhi Pro Res Res Tes Used RIF Installer . | . . . . . . . . . . . . . . . . . . . . . . . . . . Robots Hacked . | . . . . . . . . . . . . . . . . . . . . . . . . . . Non-combat . | . . . . . . . . . . . . . . . . . . . . . . . . . . Combat . | . . . . . . . . . . . . . . . . . . . . . . . . . . Robot Hacks Applied . | . . . . . . . . . . . . . . . . . . . . . . . . . . Relay Couplers Released . | . . . . . . . . . . . . . . . . . . . . . . . . . . Fabnet Peak Effective % . | . . . . . . . . . . . . . . . . . . . . . . . . . . Robots Rewired 15 | . . . . . . . . . . . . . . . 15 . . . . . . . . . . Allies Hacked 1 | . . . . . . . . . . . . . . . 1 . . . . . . . . . . Hacks Repelled . | . . . . . . . . . . . . . . . . . . . . . . . . . . Allies | -11 -10 -9 -8 -7 -7 -7 -7 -6 -6 -6 -6 -5 -5 -5 -5 -5 -5 -4 -4 -4 -4 -3 -3 -2 -2 -------- Run | Yrd Mat Mat Mat Fac Low Low Dat Pro Fac Low Low Fac Was Fac Ext Cet Arc Fac Upp Upp Zhi Pro Res Res Tes Total Allies 55 | . . . . 2 . . . 1 . . . . 20 . 27 5 . . . . . . . . . Largest Group 26 | . . . . 2 . . . 1 1 . . . 20 20 26 25 20 . . . . . . . . Highest-Rated Group 1087 | . . . . 17 . . . 96 96 . . . 775 775 989 1087 1049 . . . . . . . . Highest-Rated Ally 159 | . . . . 9 . . . 96 96 . . . 50 50 159 159 143 . . . . . . . . Total Orders 2 | . . . . 2 . . . . . . . . . . . . . . . . . . . . . COLLECT 2 | . . . . 2 . . . . . . . . . . . . . . . . . . . . . Ally Attacks 347 | . . . . . . . . 5 1 . . . . 23 191 84 43 . . . . . . . . Total Damage 8903 | . . . . . . . . 95 . . . . . 675 5050 1721 1362 . . . . . . . . Kills 61 | . . . . . . . . 1 . . . . . 8 34 11 7 . . . . . . . . Allies Corrupted 1 | . . . . . . . . . 1 . . . . . . . . . . . . . . . . Allies Melted 2 | . . . . . . . . . . . . . . . 2 . . . . . . . . . . Intel | -11 -10 -9 -8 -7 -7 -7 -7 -6 -6 -6 -6 -5 -5 -5 -5 -5 -5 -4 -4 -4 -4 -3 -3 -2 -2 ------- Run | Yrd Mat Mat Mat Fac Low Low Dat Pro Fac Low Low Fac Was Fac Ext Cet Arc Fac Upp Upp Zhi Pro Res Res Tes Active Infowar (turns) 8537 | 142 316 485 352 509 641 299 . . 205 . . . . 345 1145 636 83 238 478 315 257 333 1006 387 365 Sensors 3766 | . . . . . . . . . 205 . . . . 345 1145 636 81 . . . . . 602 387 365 Terrain 302 | . . . . 302 . . . . . . . . . . . . . . . . . . . . . Seismic 2744 | 142 316 485 352 509 641 299 . . . . . . . . . . . . . . . . . . . Decoding 478 | . . . . . . . . . . . . . . . . . . 173 305 . . . . . . Jamming 2219 | . . . . . . . . . . . . . . . . . 2 238 478 315 257 333 596 . . Robot Analysis Total 6 | . . . . . . . . . . . . . . . 2 . . . . . 4 . . . . Derelict Logs Recovered 5 | . . . . . 2 . . . . . . . . . . . . . 2 1 . . . . . Drone Launches . | . . . . . . . . . . . . . . . . . . . . . . . . . . Drone Recoveries . | . . . . . . . . . . . . . . . . . . . . . . . . . . Decoded 0b10 Intel 13 | . . . . . . . . . . . . . . . . . . 13 . . . . . . . Items 13 | . . . . . . . . . . . . . . . . . . 13 . . . . . . . Exploration | -11 -10 -9 -8 -7 -7 -7 -7 -6 -6 -6 -6 -5 -5 -5 -5 -5 -5 -4 -4 -4 -4 -3 -3 -2 -2 ------------- Run | Yrd Mat Mat Mat Fac Low Low Dat Pro Fac Low Low Fac Was Fac Ext Cet Arc Fac Upp Upp Zhi Pro Res Res Tes Turns Passed 10951 | 254 316 485 358 509 641 489 127 553 474 397 59 236 187 478 1145 636 139 238 478 315 257 333 1006 387 454 Spaces Moved 6511 | 159 162 206 128 298 381 297 79 450 411 339 52 194 134 308 545 191 81 116 258 191 145 189 706 82 409 Core 202 | 7 . . . . . . . 95 . . . . . . . . . . . . . . . . 100 Treads 2002 | . . . . . 178 297 79 181 . . . . . . 239 191 81 116 258 191 145 46 . . . Legs 2129 | 152 162 206 128 298 77 . . . . . . . . . . . . . . . . 143 706 82 175 Wheels 2044 | . . . . . 126 . . 174 411 339 52 194 134 308 306 . . . . . . . . . . Hover . | . . . . . . . . . . . . . . . . . . . . . . . . . . Flight 134 | . . . . . . . . . . . . . . . . . . . . . . . . . 134 Fastest Speed 39 | 50 120 120 120 120 110 160 160 50 100 100 100 101 101 101 101 160 160 163 163 165 165 120 117 125 39 Average Speed 133 | 116 183 186 188 162 150 160 160 113 100 100 109 114 101 101 140 160 161 163 164 165 165 138 120 128 80 Slowest Speed 400 | 120 190 190 190 190 400 160 160 240 100 100 115 130 101 101 320 160 163 163 165 165 165 250 125 140 130 Overloaded Moves . | . . . . . . . . . . . . . . . . . . . . . . . . . . Propulsion Burnouts . | . . . . . . . . . . . . . . . . . . . . . . . . . . Robots Hopped 8 | . . . . . . . . . . . . . . . 1 . . . . . . . . . 7 Potential Cave-ins 3 | . . . . . . 3 . . . . . . . . . . . . . . . . . . . Cave-ins Triggered . | . . . . . . . . . . . . . . . . . . . . . . . . . . Teleports 1 | . . . . . . . . . . . . . . . . . . . . . . . . . 1 Exploration Rate (%) 39 | 7 48 23 22 9 54 46 68 54 14 53 8 6 73 9 74 74 98 3 52 39 60 47 32 4 47 Regions Visited 25 Branch Regions 14 Pre-discovered Areas 4 | . . . . . . . 1 . . . . . . . . . . . . . 3 . . . . Known Exits Taken 8 | . . . . 1 . . . . 1 . . . . 1 1 1 1 . . . . 1 . 1 . Unknown Exits Taken 15 | 1 1 1 1 . 1 1 1 1 . 1 1 . . . . . . 1 1 1 1 . 1 . . Scrap Searched 10 | . . . . . 2 1 . 1 . 2 1 . . . . . . . 1 . . 2 . . . Spaces Dug 45 | . . . . . . 7 . 3 4 . . . . 7 . . . . . . . . 7 16 1 Terrain Destroyed 200 | . . . . . . 7 . 3 4 . . . . 7 . . . . . 1 . . 25 152 1 Melee 34 | . . . . . . 7 . 3 4 . . . . 7 . . . . . . . . 6 6 1 Projectile 2 | . . . . . . . . . . . . . . . . . . . . 1 . . 1 . . AOE 164 | . . . . . . . . . . . . . . . . . . . . . . . 18 146 . Terrain Rammed . | . . . . . . . . . . . . . . . . . . . . . . . . . . Walls Destroyed . | . . . . . . . . . . . . . . . . . . . . . . . . . . Machines Disabled . | . . . . . . . . . . . . . . . . . . . . . . . . . . Actions | -11 -10 -9 -8 -7 -7 -7 -7 -6 -6 -6 -6 -5 -5 -5 -5 -5 -5 -4 -4 -4 -4 -3 -3 -2 -2 --------- Run | Yrd Mat Mat Mat Fac Low Low Dat Pro Fac Low Low Fac Was Fac Ext Cet Arc Fac Upp Upp Zhi Pro Res Res Tes Total 8280 | 193 179 254 205 323 425 303 80 473 460 366 53 205 184 437 886 519 90 139 290 191 159 236 816 312 502 Wait 1016 | 3 13 7 51 7 15 . . 14 20 6 . . 49 97 152 303 4 1 10 . . 14 16 179 55 Move 6474 | 158 161 205 127 297 380 296 78 449 411 338 51 194 133 307 542 190 80 115 257 190 144 188 705 81 397 Hop 6 | . . . . . . . . . . . . . . . 1 . . . . . . . . . 5 Pick Up 70 | 6 1 4 . 5 2 . . . 3 1 1 2 . 3 6 6 . 2 2 1 7 4 14 . . Fast Attach 59 | 7 . 2 1 1 3 . . 2 7 3 1 3 . 3 4 1 . 3 1 . . . 11 . 6 Attach 64 | . . . 4 2 3 . 2 . 2 1 . 2 . . 3 . 5 3 5 . 1 7 5 10 9 Detach 7 | . . . . . . . . . . . . . . . . . . . . . . . 3 2 2 Swap 59 | 1 1 6 1 7 1 . . . . . . 1 2 2 9 4 . . 1 . 7 . 15 1 . Drop 45 | 1 2 2 . 4 1 . . . 2 . . 2 . 1 3 7 1 . . . . 2 17 . . Fire 74 | 17 1 22 . . . . . . . . . . . 2 . . . . . . . . 4 26 2 Melee 232 | . . 6 21 . 20 7 . 8 7 17 . 1 . 22 22 . . 15 14 . . 21 26 13 12 Ram . | . . . . . . . . . . . . . . . . . . . . . . . . . . Kick . | . . . . . . . . . . . . . . . . . . . . . . . . . . Crush . | . . . . . . . . . . . . . . . . . . . . . . . . . . Escape Stasis 47 | . . . . . . . . . 8 . . . . . 25 . . . . . . . . . 14 Rewire 119 | . . . . . . . . . . . . . . . 119 . . . . . . . . . . Trap . | . . . . . . . . . . . . . . . . . . . . . . . . . . Miscellaneous 8 | . . . . . . . . . . . . . . . . 8 . . . . . . . . . Route ------- -11/Scrapyard -10/Materials -9/Materials -8/Materials -7/Factory (discovered 2 exits: *Low x2) -7/Lower Caves -7/Lower Caves -7/Data Miner -6/Proximity Caves -6/Factory (discovered 2 exits: *Low x2) -6/Lower Caves -6/Lower Caves -5/Factory -5/Waste -5/Factory (discovered 4 exits: Upp x2 / *Ext x2) -5/Extension (discovered 2 exits: *Fac / *Cet) -5/Cetus (discovered 2 exits: *Fac / *Arc) -5/Archives (discovered 3 exits: *Fac / *Hub x2) -4/Factory -4/Upper Caves -4/Upper Caves (discovered 2 exits: *Res / *Zhi) -4/Zhirov -3/Proximity Caves -3/Research -2/Research (discovered 2 exits: *Tes x2) -2/Testing History --------- Turn | Location | Event 21 | -11/Scrapyard | Discovered new exit (range 15) 255 | -11/Scrapyard | Entered Materials 333 | -10/Materials | Build established: Mutant 554 | -10/Materials | Discovered new exit (range 6) 571 | -10/Materials | Entered another Materials area 571 | -9/Materials | Evolved 2 slots: Propulsion x1, Utility x1 1016 | -9/Materials | Discovered new exit (range 16) 1056 | -9/Materials | Entered another Materials area 1056 | -8/Materials | Evolved 2 slots: Utility x1, Weapon x1 1077 | -8/Materials | Build established: Scavenger-Mutant 1409 | -8/Materials | Discovered new exit (range 4) 1414 | -8/Materials | Entered Factory 1414 | -7/Factory | Evolved 2 slots: Propulsion x1, Utility x1 1487 | -7/Factory | Fabricated R-06 Scavenger? 1500 | -7/Factory | Identified exit to Lower Caves 1923 | -7/Factory | Entered Lower Caves 1969 | -7/Lower Caves | Learned 4 Factory zone layouts 2062 | -7/Lower Caves | Build established: Scavenger-Gladiator 2104 | -7/Lower Caves | Lost 3 parts (3n) 2194 | -7/Lower Caves | Spotted B-75 Beast 2269 | -7/Lower Caves | Destroyed B-75 Beast 2298 | -7/Lower Caves | Lost 5 parts (1p2n1u1w) 2498 | -7/Lower Caves | Learned 8 Factory zone layouts 2551 | -7/Lower Caves | Discovered new exit (range 9) 2564 | -7/Lower Caves | Entered another Lower Caves area 2680 | -7/Lower Caves | Spotted B-75 Beast 3032 | -7/Lower Caves | Discovered new exit (range 14) 3053 | -7/Lower Caves | Entered Data Miner 3053 | -7/Data Miner | Discovered new exit (range 6) 3084 | -7/Data Miner | Met Data Miner 3114 | -7/Data Miner | Acquired the access code to Warlord's prototype stash 3114 | -7/Data Miner | Learned location of Section 7 (-3) 3143 | -7/Data Miner | Received God Mode back door access code from Data Miner 3180 | -7/Data Miner | Entered Proximity Caves 3183 | -6/Proximity Caves | Spotter reported a threat 3183 | -6/Proximity Caves | Spotter reported a threat 3236 | -6/Proximity Caves | Spotter reported a threat 3299 | -6/Proximity Caves | Spotter reported a threat 3329 | -6/Proximity Caves | Spotter reported a threat 3453 | -6/Proximity Caves | Build established: Gladiator 3492 | -6/Proximity Caves | Attracted the attention of an 0b10 checkpoint 3495 | -6/Proximity Caves | Released all parts (7) 3499 | -6/Proximity Caves | Core integrity fell below 50% 3582 | -6/Proximity Caves | Escorted by Enhanced Grunt 3708 | -6/Proximity Caves | Discovered new exit (range 11) 3733 | -6/Proximity Caves | Entered Factory 3733 | -6/Factory | Accompanied by 1 ally 3733 | -6/Factory | Evolved 2 slots: Utility x1, Weapon x1 3734 | -6/Factory | Identified exit to Lower Caves 3793 | -6/Factory | Build established: Mutant 4083 | -6/Factory | Search patrols dispatched 4207 | -6/Factory | Entered Lower Caves 4228 | -6/Lower Caves | Encountered a Warlord checkpoint 4317 | -6/Lower Caves | Build established: Gladiator 4591 | -6/Lower Caves | Discovered new exit (range 15) 4604 | -6/Lower Caves | Entered another Lower Caves area 4607 | -6/Lower Caves | Encountered a Warlord checkpoint 4657 | -6/Lower Caves | Discovered new exit (range 5) 4663 | -6/Lower Caves | Entered Factory 4663 | -5/Factory | Evolved 2 slots: Power x1, Utility x1 4888 | -5/Factory | Spotted B-75 Beast 4899 | -5/Factory | Sucked down chute 4899 | -5/Factory | Entered Waste 4900 | -5/Waste | Joined by Warlord forces that had cleared the area 4921 | -5/Waste | Build established: Derelict-Gladiator 4946 | -5/Waste | Discovered new exit (range 15) 4994 | -5/Waste | Found Prototype Hackware 4994 | -5/Waste | Identified Exp. System Shield 5086 | -5/Waste | Entered Factory 5086 | -5/Factory | Accompanied by 20 allies 5146 | -5/Factory | Identified exit to Upper Caves 5146 | -5/Factory | Identified exit to Extension 5286 | -5/Factory | Build established: Hacker-Gladiator 5324 | -5/Factory | Lost 7 allies 5564 | -5/Factory | Entered Extension 5564 | -5/Extension | Accompanied by 13 allies 5705 | -5/Extension | Rescued a captive Derelict 5760 | -5/Extension | Rescued a captive Derelict 5761 | -5/Extension | Rescued a captive Derelict 5762 | -5/Extension | Identified exit to Cetus 5869 | -5/Extension | Lost 4 allies 5911 | -5/Extension | P-70 Sage assimilated allied 7C-G3Y(d) 6001 | -5/Extension | Rescued a captive Derelict 6003 | -5/Extension | Rescued a captive Derelict 6024 | -5/Extension | Spotted B-75 Beast 6074 | -5/Extension | Spotted B-75 Beast 6084 | -5/Extension | Allies destroyed B-75 Beast 6101 | -5/Extension | Allies destroyed B-75 Beast 6123 | -5/Extension | Lost 7 allies 6164 | -5/Extension | First assault squad dispatched 6191 | -5/Extension | Rescued a captive Derelict 6192 | -5/Extension | Rescued a captive Derelict 6217 | -5/Extension | Rescued a captive Derelict 6241 | -5/Extension | Rescued A7 6254 | -5/Extension | System corruption reached 10% 6489 | -5/Extension | Rescued a captive Derelict 6542 | -5/Extension | Rescued a captive Derelict 6542 | -5/Extension | Rescued a captive Derelict 6576 | -5/Extension | Discovered new exit (range 10) 6593 | -5/Extension | Identified exit to Factory 6616 | -5/Extension | Build established: Commander-Gladiator 6709 | -5/Extension | Entered Cetus 6709 | -5/Cetus | Accompanied by 25 allies (A7) 6714 | -5/Cetus | Acquired a Cetus Manufacturing Module code from A7 6740 | -5/Cetus | Spotted Cetus Guard 6740 | -5/Cetus | Spotted Cetus Guard 6747 | -5/Cetus | Spotted Cetus Guard 6753 | -5/Cetus | Spotted Cetus Guard 6759 | -5/Cetus | Allies destroyed Cetus Guard 6763 | -5/Cetus | Allies destroyed Cetus Guard 6764 | -5/Cetus | Allies destroyed Cetus Guard 6775 | -5/Cetus | Allies destroyed Cetus Guard 6806 | -5/Cetus | Lost 9 allies 6887 | -5/Cetus | Escorted A7 to Cetus Mainframe 6918 | -5/Cetus | Started Cetus Manufacturing Module 6943 | -5/Cetus | Manufactured an Enhanced Grunt 6968 | -5/Cetus | Manufactured an Enhanced Grunt 6993 | -5/Cetus | Manufactured an Enhanced Grunt 7018 | -5/Cetus | Manufactured an Enhanced Grunt 7043 | -5/Cetus | Manufactured an Enhanced Grunt 7136 | -5/Cetus | Discovered new exit (range 15) 7162 | -5/Cetus | Spotted Cetus Guard 7162 | -5/Cetus | Spotted Cetus Guard 7170 | -5/Cetus | Spotted Cetus Guard 7180 | -5/Cetus | Allies destroyed Cetus Guard 7181 | -5/Cetus | Allies destroyed Cetus Guard 7189 | -5/Cetus | Discovered exit to Factory (range 16) 7197 | -5/Cetus | Met Revision 17 7269 | -5/Cetus | Identified exit to Archives 7345 | -5/Cetus | Entered Archives 7345 | -5/Archives | Accompanied by 20 allies (A7) 7350 | -5/Archives | Received a hacking code to weaken MAIN.C 7363 | -5/Archives | Met Zhirov 7369 | -5/Archives | Reinforcements dispatched to Archives 7385 | -5/Archives | Discovered new exit (range 14) 7405 | -5/Archives | Identified exit to Hub_04(d) 7426 | -5/Archives | Zhirov detonated Archives 7438 | -5/Archives | Discovered exit to Hub_04(d) (range 16) 7456 | -5/Archives | Discovered exit to Factory (range 16) 7457 | -5/Archives | Lost 5 parts (1p1n2u1w) 7457 | -5/Archives | Lost 16 allies 7484 | -5/Archives | Entered Factory 7484 | -4/Factory | Evolved 2 slots: Utility x2 7710 | -4/Factory | Discovered new exit (range 7) 7722 | -4/Factory | Entered Upper Caves 7734 | -4/Upper Caves | Build established: Scavenger-Gladiator 7756 | -4/Upper Caves | Learned Research terminal intel 7931 | -4/Upper Caves | Lost 3 parts (1p1n1u) 7931 | -4/Upper Caves | Learned location of 1 exit from Proximity Caves 8143 | -4/Upper Caves | Attracted the attention of an 0b10 checkpoint 8189 | -4/Upper Caves | Discovered new exit (range 7) 8200 | -4/Upper Caves | Entered another Upper Caves area 8200 | -4/Upper Caves | Discovered new exit (range 7) 8465 | -4/Upper Caves | Discovered new exit (range 8) 8497 | -4/Upper Caves | Learned 4 Research zone layouts 8515 | -4/Upper Caves | Entered Zhirov 8515 | -4/Zhirov | Discovered new exit (range 3) 8578 | -4/Zhirov | Learned location of Command (-1) 8578 | -4/Zhirov | Learned location of Testing (-2) 8578 | -4/Zhirov | Learned location of Quarantine (-3) 8621 | -4/Zhirov | Found Alien Artifact 8621 | -4/Zhirov | Identified Integrated Reactor 8621 | -4/Zhirov | Installed Integrated Reactor, increased core energy generation (+10) 8643 | -4/Zhirov | Found Alien Artifact 8772 | -4/Zhirov | Entered Proximity Caves 8773 | -3/Proximity Caves | Identified exit to Research 8947 | -3/Proximity Caves | Spotter reported a threat 8949 | -3/Proximity Caves | Spotted B-86 Titan 8994 | -3/Proximity Caves | Spotter reported a threat 9067 | -3/Proximity Caves | Lost 3 parts (1u2w) 9105 | -3/Proximity Caves | Entered Research 9105 | -3/Research | Evolved 2 slots: Propulsion x1, Utility x1 9107 | -3/Research | Loaded intel: 24 terminal locations 9305 | -3/Research | Revision forces began assault on 0b10 9360 | -3/Research | Build established: Mutant 9436 | -3/Research | Met up with Revision 17++ 9547 | -3/Research | Found Prototype Launcher 9547 | -3/Research | Identified Adv. Micro-nuke Launcher 9598 | -3/Research | Lost 3 allies 9803 | -3/Research | Found Prototype Processor 9803 | -3/Research | Identified Exp. Target Analyzer 9805 | -3/Research | Research terminal network offline 9844 | -3/Research | Build established: Gladiator 10014 | -3/Research | Spotted Striker 10021 | -3/Research | Spotted Striker 10024 | -3/Research | Destroyed Striker 10027 | -3/Research | Destroyed Striker 10056 | -3/Research | Spotted Striker 10071 | -3/Research | Destroyed Striker 10087 | -3/Research | Discovered new exit (range 15) 10111 | -3/Research | Entered another Research area 10111 | -2/Research | Evolved 2 slots: Utility x2 10128 | -2/Research | Identified exit to Testing 10466 | -2/Research | Lost 10 parts (2p1n4u3w) 10498 | -2/Research | Entered Testing 10499 | -2/Testing | Destroyed 10 combat bots 10526 | -2/Testing | Protovariant out of control (PD-9ZS3EDZG3K) 10543 | -2/Testing | Incoming assault squad redirected 10590 | -2/Testing | Identified Transdimensional Reconstructor 10590 | -2/Testing | Warped through subspace 10603 | -2/Testing | Incoming assault squad redirected 10636 | -2/Testing | Found Prototype Energy Cannon 10636 | -2/Testing | Identified Disintegrator 10759 | -2/Testing | Spotted Investigator 10760 | -2/Testing | Scanned by Researcher 10791 | -2/Testing | Spotted PH-5FQ2K2X2KK 10811 | -2/Testing | Core integrity fell below 50% 10825 | -2/Testing | Released all parts (8) 10853 | -2/Testing | Lost 12 parts (1p4n4u3w) 10857 | -2/Testing | Core integrity fell below 20% 10952 | -2/Testing | Destroyed by PH-5FQ2K2X2KK with Advanced KE Penetrator Last Messages --------------- to Testing Zone 7C. 10898_ Acquired Field Propulsion Drive. 10904_ W-44 Eye sends out distress signal. 10906_ Slug penetrates Wall. 10909_ Triggered Ambush Trap. 10909_ G-73 Enforcer emerges from a hatch in the floor. 10915_ System corrupted: IFF burst signal emitted. 10918_ Critical hit (Burn: +37). 10932_ Y1#A&VWHGPA&H,JNY%CNSS EJL U1FNN<#G 10949_ Penetrated by Slug. 10949_ Slug penetrates Wall. 10951_ Drone sends a signal. 10951_ H-88 Terminator deploys Drone. 10951_ Drone sends a signal. 10951_ H-88 Terminator retrieves Drone. 10951_ Drone sends a signal. 10952_ Slug penetrates Wall. 10952_ Drone suffers critical hit (Destroy). 10952_ Slug penetrates Wall. 10952_ Penetrated by Slug. Map ----- +----------------------------------------------------+ | ???????????????####### ##########+##########??? | | ?????????????????????# #??????????????????????? | | ?????????????????????# #??????????????????????? | | ?????????????????????# #??????????????????????? | | ?????????????????????# #??????????????????????? | | ?????????????????????# #??????????????????????? | | ?????????????????????# #??????????????????????? | | ?????????????????????# #??????????????????????? | | ?????????????????????# #??????????????????????? | | ?????????????????????# #??????????????????????? | | ?????????????????????# n#??????????????????????? | | ?????????????????????# h #??????????????????????? | | ????????????########## h #??????????????????????? | | ????????????# ! # #??????????????????????? | | ????????????#""" # #??????????????????????? | | ????????????#""" ! # #??????????????????????? | | ????????????#""" # #??????????????????????? | | ????????????#""" + #??????????????????????? | | ????????????#""" # #??????????????????????? | | ????????????#""" # #??????????????????????? | | ????????????#""" # h ##############?????????? | | ????????????# # # ! = #?????????? | | ????????????####+##### # k ! #?????????? | | ???????????????# #???# #h""" #?????????? | | ???????????????# #???# n """ "T" #?????????? | | ???????????????# #???# @# """ g""" #?????????? | | ???????????????# ##### # gg #?????????? | | ???????????????# ##############?????????? | | ???????????????########+#######??????????????????? | | ????????????????#] ! ! #??????????????????? | | ????????????????# ] #??????????????????? | | ????????????????# *** #??????????????????? | | ????????????????# *** """"" #??????????????????? | | ????????????????# *** """"" #??????????????????? | | ????????????????# ] """"" #??????????????????? | | ????????????????# #??????????????????? | | ????????????????# """"" """""k#??????????????????? | | ????????????????# """"" """"?????????????????????? | | ????????????????# """"" "????????????????????????? | | ??????????????????????? ?????????????????????????? | | ???????????????????????#?????????????????????????? | | | | | | | | | | | | | | | | | | | +----------------------------------------------------+ Best States ------------- Heat Dissipation 49 Energy Generation 49 Energy Capacity 575 Matter Stores 300 Matter Capacity 300 Sight Range 16 Robot Scan Range 19 Terrain Scan Range 16 Terrain Scan Density 85 Jamming Range 14 Additional Mass Support 20 Corruption Containment 12 Armor Coverage 450 Propulsion Shielding 66 Utility Shielding 90 Melee Speed Boost 20 Evasion (%) 64 Melee Accuracy 24 Target Analysis 10 Recoil Reduction 4 Offensive Hacking 14 Defensive Hacking 16 Item Schematics ----------------- Imp. Thermal Shield | -7/Data Miner | Free Imp. Gravmag System | -7/Data Miner | Free Adv. Plasma Cannon | -7/Data Miner | Free Imp. Weapon Cycler | -7/Data Miner | Free Gyrokinetic Inverter | -7/Data Miner | Free Imp. Heavy Laser | -7/Data Miner | Free Gravity Neutralizer | -7/Data Miner | Free Cld. Aerolev Unit | -7/Data Miner | Free Lgt. Regenerative Plating | -7/Data Miner | Free Combat Drone Bay | -7/Data Miner | Free Imp. Arc Thrower | -4/Zhirov | Free Exp. Optical Array | -4/Zhirov | Free Exp. Heat Sink | -4/Zhirov | Free Assault Drone Bay | -4/Zhirov | Free Adv. KE Penetrator | -2/Testing | Archive Exp. Myomer Leg | -2/Testing | Archive Imp. Matter Compressor | -2/Testing | Archive Cld. Field Propulsion Drive | -2/Testing | Archive Cld. Impulse Thruster | -2/Testing | Archive Spectral Analyzer | -2/Testing | Archive Adv. Kinecellerator | -2/Testing | Archive Exp. Matter Compressor | -2/Testing | Archive Hvy. Proton Missile Launcher | -2/Testing | Archive Robot Schematics ------------------ B-60 Warrior | -7/Data Miner | Free A-15 Conveyor | -7/Data Miner | Free R-10 Processor | -7/Data Miner | Free S-27 Virus | -7/Data Miner | Free B-48 Gladiator | -7/Data Miner | Free A-02 Transporter | -2/Testing | Archive Fabricated ------------ R-06 Scavenger | x2 | -7/Factory | Preloaded Repaired ---------- Nothing Studied --------- None Alien Tech Used ----------------- Integrated Reactor Transdimensional Reconstructor Achievements -------------- None Challenges ------------ None Game ------ Seed TimingGyrokineticReactor Manual? 0 Play Time 01:07:05 Cumulative 306.7 hours Start 2025.12.26 @ 23:55:35 End 2025.12.27 @ 01:05:45 Sessions 1 Manual Loads 0 Difficulty Rogue Special Mode None Game No. 653 Rogue 653 Adventurer 0 Explorer 0 Win Type - Total 20 Types 14/0/4/1/1/0/0/0/0/0 Lore% 81 Gallery% 72 Achievement% 51 Wizard Run 0 Options --------- Layout 0 ASCII 0 Keyboard 0 Movement Numpad Keybinds 0 Fullscreen 2 Font 18/Terminus Map View 76x50 Zoom Use 0% Tactical HUD 1 Map Filters NONE Filters SATURATION(100) Steam 1 RUN: e0447ab4-2c37-473b-b182-180980a830ca